bitfinex/quotes_BTCUSD_20250408
["timestamp","ask_amount","ask_price","bid_price","bid_amount"]
[1744071909622,0.64561979,79512.0,79511.0,0.003]
[1744071909841,1.27279826,79512.0,79511.0,0.003]
[1744071910041,1.26379826,79512.0,79511.0,0.002]
[1744071910219,1.27279826,79512.0,79511.0,0.002]
[1744071910420,1.27279826,79512.0,79507.0,0.0003364]
[1744071910421,0.604124,79508.0,79507.0,0.0003364]
[1744071910624,1.874139,79508.0,79507.0,0.0003364]
[1744071911067,1.74473355,79508.0,79507.0,0.0003364]
[1744071911270,1.74473355,79508.0,79507.0,4e-07]
[1744071911470,0.012579,79492.0,79480.0,0.0463]
[1744071911674,0.92330069,79492.0,79480.0,0.0463]
[1744071912664,0.93230069,79492.0,79491.0,0.0013364]
[1744071912864,0.94130069,79492.0,79491.0,0.0013364]
[1744071914173,0.431416,79492.0,79491.0,0.0013364]
[1744071914378,0.94130069,79492.0,79491.0,0.0013364]
[1744071916908,0.67712469,79492.0,79491.0,0.0013364]
[1744071917165,0.94130069,79492.0,79491.0,0.0013364]
[1744071918351,0.76121576,79492.0,79491.0,0.0013364]
[1744071919744,0.50961876,79492.0,79491.0,0.0013364]
[1744071919944,0.76121576,79492.0,79491.0,0.0013364]
[1744071920574,0.49703976,79492.0,79491.0,0.0013364]
[1744071920769,0.76121576,79492.0,79491.0,0.0013364]
[1744071921090,0.61193576,79492.0,79491.0,0.0013364]
[1744071921459,0.413456,79492.0,79491.0,0.0013364]
[1744071926657,0.14928,79492.0,79491.0,0.0013364]
[1744071926812,0.34,79497.0,79493.0,0.251594]
[1744071927017,0.14928,79496.0,79492.0,0.012579]
[1744071927447,0.264176,79492.0,79491.0,0.0489364]
[1744071927646,0.264167,79495.0,79491.0,0.0479364]
[1744071928006,0.264167,79495.0,79493.0,0.001]
[1744071928390,0.264167,79495.0,79491.0,0.0479364]
[1744071928800,0.272167,79495.0,79491.0,0.0489364]
[1744071929003,0.012579,79494.0,79491.0,0.0489364]
[1744071929209,0.012579,79494.0,79493.0,0.001]
[1744071929459,0.008,79495.0,79493.0,0.001]
[1744071929672,0.020579,79495.0,79491.0,0.0489364]
[1744071929876,0.264176,79492.0,79491.0,0.0499364]
[1744071930026,0.264176,79492.0,79491.0,0.0023364]
[1744071930217,0.264176,79492.0,79491.0,0.0013364]
[1744071930772,0.264176,79492.0,79491.0,0.0003364]
[1744071931569,0.264176,79492.0,79491.0,0.0013364]
[1744071932170,0.273176,79492.0,79491.0,0.0013364]
[1744071932333,0.281176,79492.0,79491.0,0.0023364]
[1744071934185,0.017,79492.0,79491.0,0.2665164]
[1744071934381,0.017,79492.0,79491.0,0.3141164]
[1744071935493,0.017,79492.0,79491.0,0.3604164]
[1744071938673,0.009,79492.0,79491.0,0.4888051]
[1744071938862,0.14928,79513.0,79511.0,0.251537]
[1744071939060,0.14928,79513.0,79511.0,0.0951]
[1744071939471,0.400811,79513.0,79511.0,0.0951]
[1744071939671,0.012576,79512.0,79511.0,0.0951]
[1744071940171,0.012578,79502.0,79501.0,0.0497]
[1744071940371,0.264146,79502.0,79501.0,0.0497]
[1744071940752,0.264146,79502.0,79501.0,0.0951]
[1744071941697,0.270146,79502.0,79501.0,0.0507]
[1744071942105,0.270146,79502.0,79501.0,0.001]
[1744071942311,0.7395347,79502.0,79501.0,0.001]
[1744071942490,1.16987555,79502.0,79501.0,0.001]
[1744071942634,0.61871685,79492.0,79491.0,0.0003364]
[1744071942834,1.22136531,79492.0,79491.0,0.0003364]
[1744071944184,1.26666531,79492.0,79491.0,4e-07]
[1744071944382,1.59031974,79492.0,79491.0,4e-07]
[1744071944586,2.02211974,79492.0,79491.0,4e-07]
[1744071944796,2.05739107,79492.0,79491.0,4e-07]
[1744071945192,0.17712285,79473.0,79472.0,0.0003362]
[1744071945393,1.93250831,79473.0,79472.0,0.0003362]
[1744071945598,1.96777964,79473.0,79472.0,0.0003362]
[1744071945974,1.93250831,79473.0,79472.0,0.0003362]
[1744071946564,1.94150831,79473.0,79472.0,0.0013362]
[1744071947002,1.95050831,79473.0,79472.0,0.0013362]
[1744071947734,1.65657876,79473.0,79472.0,0.0013362]
[1744071947940,0.98053976,79473.0,79472.0,0.0013362]
[1744071949317,0.16728,79473.0,79472.0,0.0013362]
[1744071949517,0.16728,79473.0,79472.0,0.0139192]
[1744071949719,0.018,79473.0,79472.0,0.0139192]
[1744071950095,0.264228,79477.0,79472.0,0.0013362]
[1744071951344,0.264228,79477.0,79472.0,0.0003362]
[1744071951501,0.012582,79476.0,79472.0,0.0003362]
[1744071951705,0.012582,79478.0,79472.0,0.2519952]
[1744071951907,0.251634,79481.0,79474.0,0.251654]
[1744071952245,0.260645,79477.0,79472.0,0.0013362]
[1744071952445,0.264234,79475.0,79472.0,0.0023362]
[1744071952641,0.273227,79477.0,79472.0,0.0013362]
[1744071952840,0.264234,79475.0,79472.0,0.0013362]
[1744071953209,0.264234,79475.0,79474.0,0.001]
[1744071953826,0.012582,79474.0,79472.0,0.0013362]
[1744071954160,0.012582,79474.0,79472.0,0.0023362]
[1744071954505,0.352582,79474.0,79472.0,0.0033362]
[1744071954705,0.352582,79474.0,79472.0,0.0023362]
[1744071955128,0.251657,79473.0,79472.0,0.0033362]
[1744071955341,0.251657,79473.0,79472.0,0.0023362]
[1744071955718,0.264239,79473.0,79472.0,0.0023362]
[1744071956477,0.264239,79473.0,79472.0,0.0013362]
[1744071956478,0.272239,79473.0,79472.0,0.0013362]
[1744071957066,0.604239,79473.0,79472.0,0.0003362]
[1744071957254,0.612239,79473.0,79472.0,0.0013362]
[1744071957993,0.618239,79473.0,79472.0,0.0023362]
[1744071958599,0.618239,79473.0,79472.0,2e-07]
[1744071958600,0.76216855,79473.0,79472.0,2e-07]
[1744071958993,1.17396855,79473.0,79472.0,2e-07]
[1744071959198,1.16596855,79473.0,79472.0,2e-07]
[1744071959394,1.16596855,79473.0,79472.0,0.0010002]
[1744071960090,0.591664,79471.0,79470.0,6e-07]
[1744071960423,0.74817655,79471.0,79470.0,6e-07]
[1744071961405,0.74817655,79471.0,79470.0,0.0010006]
[1744071961406,0.7406357,79471.0,79470.0,0.0010006]
[1744071961687,0.611247,79471.0,79470.0,0.0010006]
[1744071961895,0.347,79471.0,79470.0,0.0135836]
[1744071962157,0.347,79471.0,79470.0,0.0493006]
[1744071962380,0.620247,79471.0,79470.0,0.0010006]
[1744071962774,0.613247,79471.0,79470.0,6e-07]
[1744071962976,0.348,79471.0,79470.0,0.0010006]
[1744071963333,0.357,79471.0,79470.0,0.0010006]
[1744071963783,0.369583,79471.0,79470.0,0.0010006]
[1744071964139,0.357,79471.0,79470.0,0.0010006]
[1744071965203,0.369583,79471.0,79470.0,0.0010006]
[1744071965398,0.357,79471.0,79470.0,0.0010006]
[1744071966000,0.369583,79471.0,79470.0,0.0010006]
[1744071966976,0.4989717,79471.0,79470.0,0.0010006]
[1744071968437,0.4899717,79471.0,79470.0,0.0010006]
[1744071968635,0.4819717,79471.0,79470.0,6e-07]
[1744071968796,0.4909717,79471.0,79470.0,6e-07]
[1744071969049,1.91463255,79471.0,79470.0,6e-07]
[1744071969255,2.053038,79471.0,79470.0,6e-07]
[1744071970039,2.035038,79471.0,79470.0,6e-07]
[1744071970247,2.13655455,79471.0,79470.0,6e-07]
[1744071970523,2.14555455,79471.0,79470.0,6e-07]
[1744071971728,0.604282,79460.0,79459.0,0.0003364]
[1744071971927,1.37079131,79460.0,79459.0,0.0003364]
[1744071972769,1.37979131,79460.0,79459.0,0.0003364]
[1744071972973,1.37425046,79460.0,79459.0,0.0003364]
[1744071973762,1.24486176,79460.0,79459.0,0.0003364]
[1744071975496,1.26624851,79460.0,79459.0,0.0003364]
[1744071977614,0.899102,79460.0,79459.0,0.0003364]
[1744071977826,0.50732,79460.0,79459.0,0.0003364]
[1744071978002,0.50732,79460.0,79459.0,0.0129214]
[1744071978003,0.16732,79460.0,79459.0,0.0129214]
[1744071978212,0.018,79460.0,79459.0,0.0606214]
[1744071978381,0.018,79460.0,79459.0,0.1900101]
[1744071978927,0.018,79460.0,79459.0,0.2393101]
[1744071979134,0.009,79460.0,79459.0,0.2393101]
[1744071979516,0.018,79460.0,79459.0,0.2393101]
[1744071979716,0.009,79460.0,79459.0,0.2393101]
[1744071979914,0.009,79460.0,79459.0,0.2418268]
[1744071980139,0.018,79460.0,79459.0,0.2418268]
[1744071980655,0.018,79460.0,79459.0,0.2393101]
[1744071981241,0.027,79460.0,79459.0,0.2267251]
[1744071981458,0.039584,79460.0,79459.0,0.0973364]
[1744071981665,0.030584,79460.0,79459.0,0.0973364]
[1744071981867,0.030584,79460.0,79459.0,0.1003364]
[1744071981868,0.031584,79460.0,79459.0,0.1003364]
[1744071982276,0.013584,79460.0,79459.0,0.1003364]
[1744071982462,0.013584,79460.0,79459.0,0.0983364]
[1744071982646,0.022584,79460.0,79459.0,0.0983364]
[1744071983253,0.031584,79460.0,79459.0,0.0983364]
[1744071984130,0.022584,79460.0,79459.0,0.0983364]
[1744071984511,0.031584,79460.0,79459.0,0.0013364]
[1744071988300,0.251698,79460.0,79459.0,0.0013364]
[1744071989138,0.264282,79460.0,79459.0,0.0013364]
[1744071989338,0.012584,79465.0,79459.0,0.0013364]
[1744071989557,0.264282,79460.0,79459.0,0.0013364]
[1744071990576,0.264282,79460.0,79459.0,0.0023364]
[1744071991082,0.264282,79460.0,79459.0,0.0013364]
[1744071991605,0.273282,79460.0,79459.0,0.0023364]
[1744071993150,0.3960812,79460.0,79459.0,0.0023364]
[1744071993602,0.273282,79460.0,79459.0,0.0023364]
[1744071996245,0.009,79460.0,79459.0,0.0023364]
[1744071996443,0.15832,79460.0,79459.0,0.2666234]
[1744071996596,0.15832,79460.0,79459.0,0.3617234]
[1744071996801,0.009,79460.0,79459.0,0.3617234]
[1744071997242,0.009,79460.0,79459.0,0.4911121]
[1744071998119,0.62261976,79470.0,79465.0,0.264265]
[1744071998319,0.62261976,79470.0,79467.0,0.264259]
[1744071998527,0.62261976,79470.0,79468.0,0.012583]
[1744071998925,0.0216328,79483.0,79480.0,0.012581]
[1744071999164,0.14936,79485.0,79481.0,0.264213]
[1744071999365,0.14936,79485.0,79484.0,0.012581]
[1744072000213,0.14936,79485.0,79482.0,0.251629]
[1744072000508,0.14936,79485.0,79481.0,0.0463]
[1744072000509,0.012581,79482.0,79481.0,0.0463]
[1744072001013,0.264203,79484.0,79481.0,0.0473]
[1744072001224,0.012581,79483.0,79481.0,0.0473]
[1744072001720,0.009,79483.0,79481.0,0.0473]
[1744072001918,0.012581,79482.0,79481.0,0.0473]
[1744072002342,0.012581,79482.0,79481.0,0.0483]
[1744072002575,0.009,79483.0,79481.0,0.0473]
[1744072002774,0.009,79483.0,79482.0,0.4397987]
[1744072003252,0.012578,79500.0,79493.0,0.264173]
[1744072003613,0.2643114,79503.0,79493.0,0.264173]
[1744072003932,0.012578,79500.0,79493.0,0.264173]
[1744072004507,0.0001684,79503.0,79493.0,0.264173]
[1744072004827,0.0127464,79502.0,79493.0,0.264173]
[1744072005151,0.0127464,79502.0,79493.0,0.3935617]
[1744072005502,0.0001684,79502.0,79493.0,0.3935617]
[1744072006025,0.0091681,79494.0,79493.0,0.3945617]
[1744072006432,0.0271681,79494.0,79493.0,0.3965617]
[1744072006957,0.0181681,79494.0,79493.0,0.3955617]
[1744072007106,0.0181681,79494.0,79493.0,0.3965617]
[1744072007308,0.0397471,79494.0,79493.0,0.003]
[1744072007747,0.1890271,79494.0,79493.0,0.003]
[1744072007944,0.33295665,79494.0,79493.0,0.003]
[1744072008163,0.1890271,79494.0,79493.0,0.003]
[1744072008797,0.1710271,79494.0,79493.0,0.001]
[1744072008962,0.1710271,79494.0,79493.0,0.002]
[1744072009130,0.1800271,79494.0,79493.0,0.002]
[1744072009731,0.1890271,79494.0,79493.0,0.002]
[1744072010506,0.1800271,79494.0,79493.0,0.002]
[1744072010715,0.1890271,79494.0,79493.0,0.002]
[1744072020792,0.29900085,79495.0,79493.0,0.002]
[1744072021000,0.012579,79494.0,79493.0,0.002]
[1744072021979,0.26423,79476.0,79471.0,0.0499]
[1744072022291,0.26423,79476.0,79471.0,0.062483]
[1744072022837,0.012583,79471.0,79468.0,0.0463]
[1744072023043,0.26423,79476.0,79470.0,0.264249]
[1744072023527,0.26423,79476.0,79471.0,0.003]
[1744072023528,0.251655,79474.0,79471.0,0.003]
[1744072023705,0.26523,79476.0,79471.0,0.003]
[1744072024025,0.251655,79474.0,79471.0,0.003]
[1744072024241,0.25166,79472.0,79471.0,0.003]
[1744072024436,0.012582,79473.0,79471.0,0.012]
[1744072024944,0.012582,79473.0,79471.0,0.009]
[1744072025342,0.251655,79474.0,79470.0,0.009]
[1744072025532,0.264237,79474.0,79471.0,0.009]
[1744072025715,0.264243,79472.0,79471.0,0.009]
[1744072025917,0.264243,79472.0,79460.0,0.4144]
[1744072025918,0.251698,79460.0,79456.0,0.0473]
[1744072026121,0.264282,79460.0,79456.0,0.0473]
[1744072026915,0.28386827,79460.0,79452.0,0.0499]
[1744072027115,0.28386827,79460.0,79452.0,0.062486]
[1744072027296,0.28386827,79460.0,79455.0,0.264299]
[1744072027492,0.28386827,79460.0,79453.0,0.264307]
[1744072027829,0.28386827,79460.0,79452.0,0.0499]
[1744072028006,0.28386827,79460.0,79449.0,0.25173]
[1744072028212,0.02858627,79460.0,79459.0,0.0013364]
[1744072028411,0.009,79460.0,79459.0,0.0139214]
[1744072028609,0.009,79460.0,79459.0,0.0609214]
[1744072029239,0.009,79460.0,79459.0,0.0619214]
[1744072029457,0.009,79460.0,79459.0,0.1913101]
[1744072030001,0.47325976,79470.0,79466.0,0.012583]
[1744072030133,0.264279,79461.0,79459.0,0.0013364]
[1744072030556,0.264307,79453.0,79445.0,0.26433]
[1744072030757,0.012586,79452.0,79443.0,0.047]
[1744072032019,0.021586,79452.0,79451.0,0.004]
[1744072032173,0.009,79452.0,79451.0,0.004]
[1744072032371,0.025586,79452.0,79451.0,0.005]
[1744072032589,0.016586,79452.0,79451.0,0.004]
[1744072032785,0.025586,79452.0,79451.0,0.005]
[1744072033192,0.013,79452.0,79451.0,0.269313]
[1744072033535,0.013,79452.0,79451.0,0.005]
[1744072034089,0.013,79452.0,79451.0,0.003]
[1744072034090,0.009,79452.0,79451.0,0.003]
[1744072034299,0.026586,79452.0,79451.0,0.004]
[1744072034471,0.017586,79452.0,79451.0,0.003]
[1744072034677,0.026586,79452.0,79451.0,0.004]
[1744072034871,0.019,79452.0,79451.0,0.005]
[1744072035271,0.019,79452.0,79451.0,0.016586]
[1744072035272,0.01,79452.0,79451.0,0.016586]
[1744072035587,0.019,79452.0,79451.0,0.017586]
[1744072035790,0.019,79452.0,79451.0,0.005]
[1744072036012,0.01,79452.0,79451.0,0.004]
[1744072036559,0.01,79452.0,79451.0,0.4456017]
[1744072036764,0.01,79452.0,79451.0,0.4926017]
[1744072037016,0.019,79452.0,79451.0,0.4936017]
[1744072037798,0.009,79452.0,79451.0,0.4916017]
[1744072038226,0.26426,79467.0,79459.0,0.251699]
[1744072038407,0.26426,79467.0,79461.0,0.251695]
[1744072038830,0.251683,79465.0,79459.0,0.264284]
[1744072039149,0.264274,79463.0,79456.0,0.264295]
[1744072039368,0.012584,79460.0,79459.0,0.001]
[1744072039524,0.012584,79463.0,79459.0,0.001]
[1744072040168,0.264276,79462.0,79459.0,0.001]
[1744072040664,0.264282,79461.0,79459.0,0.001]
[1744072040871,0.264282,79461.0,79451.0,0.0509]
[1744072040872,0.251702,79459.0,79451.0,0.0509]
[1744072041009,0.012585,79456.0,79451.0,0.0509]
[1744072041210,0.012586,79452.0,79451.0,0.002]
[1744072041468,0.012585,79457.0,79451.0,0.014586]
[1744072042480,0.007,79452.0,79451.0,0.26831]
[1744072042681,0.007,79452.0,79451.0,0.26731]
[1744072042908,0.264293,79458.0,79451.0,0.26631]
[1744072042909,0.264296,79457.0,79451.0,0.26631]
[1744072043243,0.009,79457.0,79452.0,0.264307]
[1744072043453,0.009,79457.0,79456.0,0.251711]
[1744072043798,0.009,79457.0,79456.0,0.4871847]
[1744072044014,0.013,79457.0,79456.0,0.4871847]
[1744072044373,0.004,79457.0,79456.0,0.4871847]
[1744072044780,0.009,79457.0,79456.0,0.4871847]
[1744072045241,0.004,79457.0,79456.0,0.4881847]
[1744072045626,0.012585,79455.0,79451.0,0.002]
[1744072045806,0.26431,79453.0,79451.0,0.002]
[1744072046578,0.012586,79452.0,79451.0,0.002]
[1744072048067,0.012586,79452.0,79451.0,0.011]
[1744072048214,0.012586,79452.0,79451.0,0.008]
[1744072048870,0.013586,79452.0,79451.0,0.014]
[1744072049231,0.012586,79452.0,79451.0,0.002]
[1744072049477,0.021586,79452.0,79451.0,0.003]
[1744072050473,0.030586,79452.0,79451.0,0.004]
[1744072059178,0.018,79452.0,79451.0,0.004]
[1744072060622,0.018,79452.0,79451.0,0.313613]
[1744072061964,0.018,79452.0,79451.0,0.4430017]
[1744072064094,0.018,79452.0,79451.0,0.0493]
[1744072064292,0.030586,79452.0,79451.0,0.0493]
[1744072064518,0.030586,79452.0,79451.0,0.004]
[1744072080502,0.19731502,79452.0,79451.0,0.004]
[1744072085447,0.68129395,79452.0,79451.0,0.004]
[1744072085867,0.59925587,79452.0,79451.0,0.004]
[1744072086385,0.59025587,79452.0,79451.0,0.003]
[1744072086678,0.59025587,79452.0,79451.0,0.002]
[1744072087038,0.59925587,79452.0,79451.0,0.003]
[1744072088923,0.64645587,79452.0,79451.0,1e-06]
[1744072089136,0.77586132,79452.0,79451.0,1e-06]
[1744072091055,1.18766132,79452.0,79451.0,1e-06]
[1744072091237,1.18766132,79452.0,79419.0,0.000336]
[1744072091238,0.264379,79431.0,79419.0,0.000336]
[1744072091423,1.03124831,79431.0,79419.0,0.000336]
[1744072092074,0.264433,79415.0,79414.0,1e-08]
[1744072093128,0.265433,79415.0,79414.0,1e-08]
[1744072093528,0.271433,79415.0,79414.0,1e-08]
[1744072093730,0.270433,79415.0,79414.0,1e-08]
[1744072094171,0.28875373,79415.0,79414.0,1e-08]
[1744072094551,0.02432073,79415.0,79414.0,1e-08]
[1744072094993,0.28875373,79415.0,79414.0,1e-08]
[1744072095205,0.29775373,79415.0,79414.0,1e-08]
[1744072100304,0.015,79415.0,79414.0,1e-08]
[1744072100537,0.015,79415.0,79414.0,0.01259201]
[1744072101234,0.015,79415.0,79414.0,0.19219901]
[1744072101406,0.015,79415.0,79414.0,0.23688071]
[1744072102018,0.006,79415.0,79414.0,0.23688071]
[1744072102230,0.01259,79426.0,79421.0,0.012591]
[1744072102675,0.264396,79427.0,79422.0,0.264406]
[1744072102877,0.264388,79429.0,79424.0,0.01259]
[1744072103105,0.01259,79427.0,79421.0,0.012591]
[1744072103789,0.008,79426.0,79421.0,0.012591]
[1744072104496,0.008,79426.0,79421.0,0.264412]
[1744072104732,0.017,79426.0,79421.0,0.264412]
[1744072104961,0.017,79426.0,79422.0,0.264406]
[1744072105246,0.008,79426.0,79424.0,0.2644]
[1744072105385,0.008,79426.0,79425.0,0.10789]
[1744072105597,0.009,79426.0,79425.0,0.0953]
[1744072106195,0.008,79426.0,79425.0,0.0953]
[1744072106392,0.017,79426.0,79425.0,0.0953]
[1744072106629,0.025,79426.0,79425.0,0.10789]
[1744072107316,0.251793,79431.0,79425.0,0.10789]
[1744072107501,0.012589,79431.0,79426.0,0.264396]
[1744072107657,0.251787,79433.0,79427.0,0.26439]
[1744072107864,0.251765,79439.0,79432.0,0.012589]
[1744072108083,0.012588,79436.0,79431.0,0.012589]
[1744072108291,0.251771,79438.0,79432.0,0.012589]
[1744072108597,0.251774,79437.0,79431.0,0.264376]
[1744072108955,0.264322,79449.0,79437.0,0.251771]
[1744072109161,0.264322,79449.0,79432.0,0.012589]
[1744072109162,0.012588,79440.0,79432.0,0.012589]
[1744072109376,0.009,79436.0,79434.0,0.012589]
[1744072110221,0.009,79437.0,79436.0,0.251775]
[1744072110400,0.009,79437.0,79436.0,0.107888]
[1744072110636,0.009,79437.0,79436.0,0.0953]
[1744072110808,0.017,79437.0,79436.0,0.0953]
[1744072111403,0.009,79437.0,79436.0,0.0953]
[1744072111628,0.017,79437.0,79436.0,0.0963]
[1744072112428,0.008,79437.0,79436.0,0.0963]
[1744072112763,0.264345,79442.0,79436.0,0.107888]
[1744072113070,0.251762,79440.0,79436.0,0.0953]
[1744072113528,0.26435,79440.0,79436.0,0.0953]
[1744072114019,0.009,79437.0,79436.0,0.0963]
[1744072114463,0.26435,79440.0,79436.0,0.0487]
[1744072114806,0.27335,79440.0,79436.0,0.0497]
[1744072115006,0.021588,79440.0,79436.0,0.0497]
[1744072115208,0.009,79440.0,79437.0,0.251771]
[1744072115381,0.009,79440.0,79439.0,0.012588]
[1744072115748,0.009,79440.0,79436.0,0.314062]
[1744072115749,0.009,79440.0,79436.0,0.062288]
[1744072115868,0.009,79440.0,79437.0,0.251771]
[1744072116203,0.009,79440.0,79436.0,0.062288]
[1744072116400,0.009,79440.0,79436.0,0.31406]
[1744072117221,0.264348,79441.0,79436.0,0.0487]
[1744072117400,0.264348,79441.0,79437.0,0.001]
[1744072117401,0.012588,79438.0,79437.0,0.001]
[1744072117608,0.264356,79438.0,79437.0,0.001]
[1744072117813,0.264384,79430.0,79428.0,0.0487]
[1744072118112,0.012589,79429.0,79428.0,0.0487]
[1744072118840,0.251788,79432.0,79428.0,0.0497]
[1744072118991,0.005,79430.0,79428.0,0.0497]
[1744072119179,0.006,79430.0,79428.0,0.0497]
[1744072119876,0.001,79429.0,79428.0,0.0497]
[1744072120183,0.001,79429.0,79428.0,0.0487]
[1744072120362,0.001,79429.0,79428.0,0.06129]
[1744072120674,0.006,79429.0,79428.0,0.06129]
[1744072121440,0.005,79429.0,79428.0,0.06129]
[1744072123238,0.006,79429.0,79428.0,0.06129]
[1744072132473,0.006,79429.0,79428.0,0.2405965]
[1744072132708,0.006,79429.0,79428.0,0.2380787]
[1744072133463,0.001,79429.0,79428.0,0.2380787]
[1744072134287,0.28227056,79446.0,79428.0,0.2254887]
[1744072134489,0.14932,79449.0,79448.0,0.264322]
[1744072134696,0.14932,79449.0,79445.0,0.26433]
[1744072135618,0.14932,79449.0,79446.0,0.25174]
[1744072135821,0.14932,79449.0,79447.0,0.264324]
[1744072136519,0.14932,79449.0,79446.0,0.25174]
[1744072136728,0.02417136,79449.0,79446.0,0.25174]
[1744072137272,0.02417136,79449.0,79448.0,0.012586]
[1744072137967,0.251794,79430.0,79428.0,0.4284]
[1744072138129,0.161909,79429.0,79428.0,0.009]
[1744072138343,0.2912977,79429.0,79428.0,0.009]
[1744072138548,0.30583855,79429.0,79428.0,1e-06]
[1744072138704,0.34321818,79429.0,79428.0,1e-06]
[1744072138902,0.34321818,79429.0,79397.0,0.0469]
[1744072138903,0.264443,79412.0,79397.0,0.0469]
[1744072139113,0.283016,79412.0,79396.0,0.0003362]
[1744072140311,0.283016,79412.0,79411.0,0.0093364]
[1744072140515,0.4124047,79412.0,79411.0,4e-07]
[1744072140774,0.47394555,79412.0,79411.0,4e-07]
[1744072140910,0.5113407,79412.0,79411.0,4e-07]
[1744072141314,0.47894555,79412.0,79411.0,4e-07]
[1744072141903,0.4194047,79412.0,79411.0,4e-07]
[1744072142099,0.272424,79412.0,79411.0,4e-07]
[1744072142300,0.014592,79412.0,79411.0,4e-07]
[1744072142507,0.01,79412.0,79404.0,0.012593]
[1744072142703,0.01,79412.0,79410.0,0.264448]
[1744072142927,0.01,79412.0,79411.0,0.012592]
[1744072143416,0.019,79412.0,79411.0,0.01511047]
[1744072143617,0.019,79412.0,79411.0,0.144499]
[1744072143846,0.001,79412.0,79411.0,0.14449897]
[1744072144050,0.001,79412.0,79411.0,0.4819807]
[1744072144256,0.006,79412.0,79411.0,0.4819807]
[1744072144661,0.001,79412.0,79411.0,0.4819807]
[1744072145345,0.005,79412.0,79411.0,0.8963807]
[1744072145551,0.11286405,79429.0,79428.0,0.01259]
[1744072145758,0.11286405,79429.0,79428.0,0.1419787]
[1744072145978,0.11286405,79429.0,79428.0,0.3937787]
[1744072146340,0.401103,79447.0,79438.0,0.264355]
[1744072146536,0.0127551,79444.0,79439.0,0.012588]
[1744072147141,0.0001681,79444.0,79443.0,0.012587]
[1744072147604,0.0001681,79444.0,79443.0,0.1419757]
[1744072148297,0.0091681,79444.0,79443.0,0.1419757]
[1744072149058,0.0111681,79444.0,79443.0,0.1419757]
[1744072149258,0.0111681,79444.0,79442.0,0.251755]
[1744072149259,0.264346,79441.0,79433.0,0.012589]
[1744072149463,0.2539181,79444.0,79436.0,0.264362]
[1744072149658,0.0021681,79444.0,79439.0,0.012588]
[1744072149867,0.0051681,79444.0,79440.0,0.012588]
[1744072150455,0.0001681,79444.0,79440.0,0.012588]
[1744072150656,0.0071681,79444.0,79440.0,0.012588]
[1744072151231,0.0071681,79444.0,79441.0,0.251759]
[1744072151512,0.0001681,79444.0,79443.0,0.264339]
[1744072151722,0.0121681,79444.0,79443.0,0.012587]
[1744072151866,0.0121681,79444.0,79441.0,0.264346]
[1744072152484,0.0171681,79444.0,79441.0,0.264346]
[1744072152695,0.0121681,79444.0,79441.0,0.264346]
[1744072152851,0.0091681,79444.0,79441.0,0.264346]
[1744072153174,0.0111681,79444.0,79441.0,0.264346]
[1744072153632,0.0091681,79444.0,79441.0,0.264346]
[1744072153907,0.0141681,79444.0,79441.0,0.264346]
[1744072154114,0.0141681,79444.0,79439.0,0.1419767]
[1744072154115,0.0267551,79444.0,79439.0,0.1293887]
[1744072154255,0.012589,79432.0,79422.0,0.413768]
[1744072154458,0.012589,79432.0,79426.0,0.3937847]
[1744072154657,0.251794,79430.0,79426.0,0.1293887]
[1744072154857,0.01259,79427.0,79426.0,0.1293887]
[1744072155108,0.251797,79429.0,79426.0,0.1293887]
[1744072155408,0.012589,79431.0,79426.0,0.3811947]
[1744072155805,0.012589,79431.0,79426.0,0.1293887]
[1744072156239,0.012589,79430.0,79426.0,0.1293887]
[1744072156515,0.001,79429.0,79426.0,0.1293887]
[1744072157073,0.001,79429.0,79426.0,0.3937847]
[1744072157284,0.001,79429.0,79426.0,0.3937837]
[1744072157513,0.001,79429.0,79426.0,0.1303887]
[1744072157740,0.001,79429.0,79426.0,0.3947847]
[1744072157947,0.001,79429.0,79426.0,0.1293887]
[1744072158328,0.001,79429.0,79426.0,0.3937837]
[1744072158523,0.001,79429.0,79428.0,0.26439]
[1744072158726,0.001,79429.0,79426.0,0.1419787]
[1744072159119,0.002,79429.0,79426.0,0.1419787]
[1744072159662,0.003,79429.0,79426.0,0.1419787]
[1744072159826,0.003,79429.0,79426.0,0.3937837]
[1744072160158,0.002,79429.0,79428.0,0.26439]
[1744072160353,0.002,79429.0,79428.0,0.26539]
[1744072160542,0.003,79429.0,79428.0,0.26539]
[1744072161059,0.26438,79431.0,79426.0,0.1293887]
[1744072161403,0.002,79429.0,79426.0,0.3821947]
[1744072161527,0.001,79429.0,79426.0,0.3947847]
[1744072161726,0.001,79429.0,79426.0,0.1419787]
[1744072162164,0.002,79429.0,79428.0,0.001]
[1744072162777,0.001,79429.0,79428.0,0.001]
[1744072163278,0.017589,79431.0,79426.0,0.3937837]
[1744072163488,0.017589,79431.0,79426.0,0.1419787]
[1744072163806,0.006,79429.0,79426.0,0.1419787]
[1744072164037,0.006,79429.0,79428.0,0.26439]
[1744072164268,0.004,79429.0,79428.0,0.26439]
[1744072164500,0.004,79429.0,79428.0,0.3937787]
[1744072165282,0.01,79429.0,79428.0,0.3937787]
[1744072165521,0.006,79429.0,79428.0,0.3937787]
[1744072166016,0.01,79429.0,79428.0,0.3937787]
[1744072166651,0.004,79429.0,79428.0,0.3937787]
[1744072167048,0.007,79429.0,79428.0,0.3937787]
[1744072167371,0.003,79429.0,79428.0,0.3937787]
[1744072167649,0.2645051,79444.0,79437.0,0.264356]
[1744072167884,0.0001681,79444.0,79441.0,0.251758]
[1744072168777,0.0001681,79444.0,79442.0,0.26434]
[1744072168978,0.0001681,79444.0,79441.0,0.264345]
[1744072169262,0.0071681,79444.0,79439.0,0.251765]